fUSD/lending_fUSD_20251113
["ID","MTS","AMOUNT","RATE_DAILY","PERIOD"]
[393837566,1763027476440,500.0,0.000169,2]
[393837567,1763027493289,500.0,0.00016999,2]
[393837568,1763027493334,500.0,0.00016999,2]
[393837569,1763027493365,461.23369685,0.00016999,2]
[393837570,1763027493400,500.0,0.00016999,2]
[393837571,1763027493435,500.0,0.00016999,2]
[393837572,1763027493478,500.0,0.00016999,2]
[393837573,1763027493551,509.90479,0.00016999,2]
[393837574,1763027493632,500.0,0.00016999,2]
[393837575,1763027522136,162.0,0.00022,30]
[393837576,1763027523689,195.0,0.00028564,120]
[393837577,1763027524726,2500.0,0.00028564,120]
[393837578,1763027529787,276.89178236,0.00016999,2]
[393837579,1763027529897,172.76307935,0.00016999,2]
[393837580,1763027529973,172.76307935,0.00016999,2]
[393837581,1763027532946,151.0,0.00016999,2]
[393837583,1763027646515,500.0,0.000169,2]
[393837639,1763027831193,132.65092792,0.00016999,2]
[393837640,1763027831217,18.34907208,0.00016999,2]
[393837641,1763027832332,216.28923806,0.00016999,2]
[393837643,1763027952509,349.43187241,0.00030136,120]
[393837644,1763027954782,367.4206981,0.000164,2]
[393837646,1763027982009,-408.9,0.00017523,2]
[393837647,1763027982038,-250.0,0.00017966,2]
[393837650,1763028003150,500.0,0.00017523,2]
[393837651,1763028003674,470.50859545,0.00017523,2]
[393837655,1763028073301,261.95553024,0.00013699,2]
[393837656,1763028073331,150.411,0.00013699,2]
[393837657,1763028073359,7.46346976,0.00013699,2]
[393838101,1763028404973,188.45,0.00016712,2]
[393838118,1763028631410,-408.9,0.00018409,2]
[393838119,1763028631420,-250.0,0.00018432,2]
[393838120,1763028631429,-500.0,0.000185,2]
[393838121,1763028631438,-408.9,0.00019295,2]
[393838122,1763028631448,-166.66,0.00019435,2]
[393838123,1763028631461,-166.66,0.00019844,2]
[393838124,1763028631470,-284.01732105,0.00020181,2]
[393838125,1763028631567,-124.88267895,0.00020181,2]
[393838126,1763028631577,-419.83,0.00020187,2]
[393838127,1763028631586,-250.0,0.0002025,2]
[393838128,1763028631595,-250.0,0.0002025,2]
[393838129,1763028631604,-166.66,0.00020253,2]
[393838130,1763028631614,-1200.0,0.00020444,2]
[393838131,1763028631623,-1200.0,0.00020445,2]
[393838132,1763028631633,-550.0,0.00020445,2]
[393838133,1763028631643,-300.0,0.00020445,2]
[393838134,1763028631652,-300.0,0.00020445,2]
[393838135,1763028631662,-151.0,0.00020446,2]
[393838136,1763028631671,-151.0,0.00020446,2]
[393838138,1763028631681,-151.0,0.00020446,2]
[393838140,1763028631690,-151.0,0.00020446,2]
[393838141,1763028631699,-151.0,0.00020446,2]
[393838142,1763028631709,-151.0,0.00020446,2]
[393838143,1763028631720,-151.0,0.00020446,2]
[393838145,1763028631729,-151.0,0.00020446,2]
[393838147,1763028631739,-151.0,0.00020446,2]
[393838149,1763028631752,-151.0,0.00020446,2]
[393838151,1763028631762,-151.0,0.00020446,2]
[393838153,1763028631772,-151.0,0.00020446,2]
[393838156,1763028631782,-151.0,0.00020446,2]
[393838159,1763028631791,-151.0,0.00020446,2]
[393838163,1763028631801,-151.0,0.00020446,2]
[393838166,1763028631810,-151.0,0.00020446,2]
[393838168,1763028631819,-151.0,0.00020446,2]
[393838170,1763028631829,-151.0,0.00020446,2]
[393838173,1763028631838,-151.0,0.00020446,2]
[393838176,1763028631847,-151.0,0.00020446,2]
[393838178,1763028631856,-151.0,0.00020446,2]
[393838182,1763028631866,-151.0,0.00020446,2]
[393838185,1763028631875,-151.0,0.00020446,2]
[393838187,1763028631884,-151.0,0.00020446,2]
[393838189,1763028631894,-151.0,0.00020446,2]
[393838191,1763028631903,-151.0,0.00020446,2]
[393838192,1763028631913,-151.0,0.00020446,2]
[393838194,1763028631923,-151.0,0.00020446,2]
[393838197,1763028631932,-151.0,0.00020446,2]
[393838198,1763028631941,-151.0,0.00020446,2]
[393838201,1763028631951,-151.0,0.00020446,2]
[393838203,1763028631961,-151.0,0.00020446,2]
[393838205,1763028631970,-151.0,0.00020446,2]
[393838207,1763028631979,-151.0,0.00020446,2]
[393838209,1763028631988,-151.0,0.00020446,2]
[393838211,1763028631997,-151.0,0.00020446,2]
[393838212,1763028632006,-151.0,0.00020446,2]
[393838214,1763028632015,-151.0,0.00020446,2]
[393838216,1763028632027,-151.0,0.00020446,2]
[393838218,1763028632036,-151.0,0.00020446,2]
[393838220,1763028632045,-2029.2873088,0.00020458,2]
[393838223,1763028632057,-8224.6,0.00020458,2]
[393838225,1763028632068,-359.96942977,0.00020458,2]
[393838227,1763028632079,-13969.54326143,0.00020458,2]
[393838229,1763028632088,-166.66,0.00020662,2]
[393838231,1763028632098,-2991.61819659,0.00020744,2]
[393838233,1763028632107,-408.9,0.00021067,2]
[393838235,1763028632116,-166.66,0.00021072,2]
[393838237,1763028632128,-166.66,0.00021481,2]
[393838239,1763028632138,-150.0,0.00021585,2]
[393838241,1763028632147,-408.9,0.00021954,2]
[393838243,1763028632156,-420.0,0.00022252,2]
[393838244,1763028632165,-420.0,0.00022252,2]
[393838245,1763028632174,-1680.0,0.00022357,2]
[393838246,1763028632183,-408.9,0.0002284,2]
[393838247,1763028632193,-408.9,0.00023726,2]
[393838248,1763028632202,-194.0,0.00024219,2]
[393838249,1763028632212,-300.0,0.00024219,2]
[393838250,1763028632222,-294.6245002,0.00024409,2]
[393838251,1763028632231,-2351.0,0.0002445,2]
[393838252,1763028632240,-478.69779641,0.00024544,2]
[393838253,1763028632249,-408.9,0.00024612,2]
[393838254,1763028632259,-165.06,0.00024658,2]
[393838255,1763028632268,-408.9,0.00025498,2]
[393838256,1763028632277,-408.9,0.00026384,2]
[393838257,1763028632287,-419.83,0.00026676,2]
[393838258,1763028632296,-3292.0,0.00026738,2]
[393838259,1763028632305,-408.9,0.0002727,2]
[393838260,1763028632314,-250.0,0.00027804,2]
[393838261,1763028632328,-408.9,0.00028156,2]
[393838262,1763028632337,-1000.0,0.00028237,2]
[393838263,1763028632347,-3039.6955152,0.00029,2]
[393838264,1763028632356,-408.9,0.00029042,2]
[393838265,1763028632365,-886.0,0.00029241,2]
[393838266,1763028632377,-408.9,0.00029929,2]
[393838267,1763028632387,-165.06,0.00030137,2]
[393838268,1763028632396,-150.99,0.0003062,2]
[393838269,1763028632406,-26112.5,0.0003062,2]
[393838270,1763028632415,-9999.99,0.0003062,2]
[393838271,1763028632425,-1522.85,0.0003062,2]
[393838272,1763028632435,-9999.99,0.0003062,2]
[393838273,1763028632445,-24792.59,0.0003062,10]
[393838274,1763028632458,-7534.26,0.0003062,2]
[393838275,1763028632471,-1535.23,0.0003062,2]
[393838276,1763028632481,-307.37,0.0003062,2]
[393838277,1763028632491,-999.99,0.0003062,2]
[393838278,1763028632502,-408.9,0.00030815,2]
[393838279,1763028632511,-150.0,0.00031327,2]
[393838280,1763028632521,-408.9,0.00031701,2]
[393838281,1763028632537,-1000.0,0.00031767,2]
[393838282,1763028632547,-408.9,0.00032587,2]
[393838283,1763028632557,-239.31867581,0.00032789,30]
[393838284,1763028632567,-419.83,0.00033165,2]
[393838285,1763028632578,-2393.97395815,0.00033222,2]
[393838286,1763028632588,-3428.0,0.00033284,2]
[393838287,1763028632598,-820.0,0.00033284,2]
[393838288,1763028632608,-1597.0,0.00033284,2]
[393838289,1763028632618,-209.423,0.00033322,35]
[393838290,1763028632628,-408.9,0.00033473,2]
[393838291,1763028632639,-2393.97395809,0.00034035,2]
[393838292,1763028632648,-395.07510646,0.00034241,2]
[393838293,1763028632660,-921.92489354,0.00034241,2]
[393838294,1763028632670,-608.0,0.00034241,2]
[393838295,1763028632679,-532.84,0.00034241,2]
[393838296,1763028632687,-408.9,0.00034359,2]
[393838297,1763028632696,-206.20770568,0.00034441,2]
[393838298,1763028632704,-2393.97395809,0.00034847,2]
[393838299,1763028632715,-206.37744859,0.00034899,120]
[393838300,1763028632724,-1000.0,0.00035296,2]
[393838301,1763028632735,-165.06,0.00035616,2]
[393838302,1763028632744,-2393.97395809,0.0003566,2]
[393838303,1763028632754,-206.37744859,0.00036268,120]
[393838304,1763028632763,-293.94,0.00036284,2]
[393838305,1763028632772,-2393.97395809,0.00036473,2]
[393838306,1763028632782,-150.0,0.00036567,7]
[393838307,1763028632791,-365.0,0.00036786,2]
[393838308,1763028633008,-2407.0,0.00037093,7]
[393838309,1763028633020,-202.10593952,0.00037208,2]
[393838310,1763028633032,-365.0,0.00037253,2]
[393838311,1763028633042,-2393.97395809,0.00037285,2]
[393838312,1763028633060,-202.10593952,0.00037516,2]
[393838313,1763028633075,-202.10593952,0.00037634,2]
[393838314,1763028633086,-206.37744859,0.00037638,120]
[393838315,1763028633096,-1000.0,0.00037667,2]
[393838316,1763028633107,-2500.0,0.00037667,2]
[393838317,1763028633118,-1108.1205009,0.00037767,2]
[393838337,1763028637469,-151.0,0.00036786,2]
[393838338,1763028637479,-191.97284428,0.00037767,2]
[393838339,1763028637490,-700.00000018,0.00037767,2]
[393838340,1763028637520,-312.0433848,0.00037767,2]
[393838341,1763028637531,-642.76071279,0.00037767,2]
[393838356,1763028639469,-2144.0,0.00033284,2]
[393838358,1763028639479,-1130.22310221,0.00036284,2]
[393838360,1763028639491,-523.49738546,0.00036284,2]
[393838378,1763028642745,-490.27951233,0.00036284,2]
[393838379,1763028642755,-5159.47857246,0.00037767,2]
[393838388,1763028645582,-440.383284,0.00037767,2]
[393838437,1763028723695,300.0,0.0002629,120]
[393838438,1763028723806,300.0,0.00025095,120]
[393838439,1763028723895,190.47853347,0.00028279,120]
[393838440,1763028725968,195.0,0.0002629,120]
[393838441,1763028726060,195.0,0.00025095,120]
[393838445,1763029210246,250.0,0.00017,2]
[393838446,1763029291555,494.7822,0.00017,2]
[393838454,1763029508212,47437.35920455,0.00018,2]
[393838455,1763029555707,-20275.53438001,0.00018,2]
[393838456,1763029560342,9420.42,8e-05,2]
[393838457,1763029564656,9352.02423732,0.00011,2]
[393838458,1763029564698,338.57656952,0.00018,2]
[393838459,1763029587586,-494.78221,0.00019,2]
[393838461,1763029598272,-494.78221,0.0001981,2]
[393838462,1763029598298,-173.83016709,0.000199,2]
[393838463,1763029598322,-37480.3694381,0.0001999,2]
[393838464,1763029598347,-250.0,0.0002,2]
[393838465,1763029613455,5000.00357569,0.000162,5]
[393838468,1763029670503,6601.01460912,0.00017,2]
[393838469,1763029670528,50000.0,0.00017,2]
[393838470,1763029670553,50000.0,0.00017,2]
[393838471,1763029670579,49505.21779,0.00017,2]
[393838472,1763029670616,50000.0,0.00017,2]
[393838473,1763029670642,560567.45527104,0.00017,2]
[393838474,1763029686243,200.0,0.0001634,2]
[393838475,1763029697958,25277.84534206,0.00015,2]
[393838478,1763029712515,1919.53240489,0.00015807,2]
[393838479,1763029716234,42761.37692685,0.00015,2]
[393838487,1763029831601,-592.63795541,0.000205,2]
[393838490,1763029831612,-176.77618455,0.00020655,2]
[393838492,1763029831623,-494.78221,0.0002081,2]
[393838494,1763029831633,-150.0,0.0002118,2]
[393838495,1763029831643,-494.78221,0.0002181,2]
[393838496,1763029831654,-250.0,0.0002255,2]
[393838497,1763029831664,-494.78221,0.0002281,2]
[393838498,1763029831674,-250.0,0.00022891,2]
[393838499,1763029831684,-500.0,0.000238,2]
[393838500,1763029831695,-478.69779641,0.00024507,2]
[393838501,1763029831705,-1200.0,0.00024999,2]
[393838502,1763029831715,-300.0,0.00024999,2]
[393838503,1763029831727,-7244.52958762,0.00025,10]
[393838504,1763029831738,-1200.0,0.00026399,2]
[393838505,1763029831748,-300.0,0.00026399,2]
[393838506,1763029831758,-27176.14035776,0.000264,2]
[393838507,1763029831769,-649.70851277,0.000264,2]
[393838508,1763029831779,-500.0,0.000264,2]
[393838509,1763029831790,-18833.861332,0.00026505,2]
[393838510,1763029831801,-250.0,0.00027,2]
[393838511,1763029831811,-1022.01905152,0.00027,2]
[393838512,1763029831821,-530.0,0.00027,2]
[393838513,1763029831831,-400.0,0.00027082,2]
[393838514,1763029831846,-922.0,0.00027205,2]
[393838515,1763029831857,-4063.94773639,0.0002739,2]
[393838516,1763029831867,-8028.37377738,0.0002739,2]
[393838517,1763029831879,-326.22,0.00027397,2]
[393838518,1763029831889,-999.0,0.00027432,3]
[393838519,1763029831900,-150.0,0.00027432,2]
[393838520,1763029831910,-198.78433167,0.000275,2]
[393838521,1763029831922,-543.03349432,0.000275,2]
[393838522,1763029831932,-1200.0,0.00028558,2]
[393838523,1763029831943,-150.0,0.00028802,2]
[393838524,1763029831954,-18833.861332,0.00029709,2]
[393838525,1763029831964,-150.0,0.00030172,2]
[393838526,1763029831975,-5517.0,0.000302,5]
[393838527,1763029831987,-322.82,0.0003062,2]
[393838529,1763029831997,-9999.99,0.0003062,2]
[393838531,1763029832007,-299.99,0.0003062,12]
[393838533,1763029832016,-150.99,0.0003062,2]
[393838535,1763029832025,-150.99,0.0003062,2]
[393838553,1763029832340,-999.99,0.0003062,2]
[393838555,1763029832360,-1429.52890753,0.000307,2]
[393838557,1763029832375,-743.42,0.00031566,2]
[393838559,1763029832384,-173.61,0.00032491,2]
[393838561,1763029832393,-18833.861332,0.00032912,2]
[393838563,1763029832403,-154.0,0.00033,14]
[393838565,1763029832412,-150.25795902,0.00033374,5]
[393838567,1763029832421,-200.0,0.00033442,2]
[393838569,1763029832430,-666.48,0.00033502,2]
[393838571,1763029832439,-2619.18,0.00033554,2]
[393838573,1763029832448,-5000.0,0.00033608,2]
[393838575,1763029832457,-1000.0,0.00034,2]
[393838577,1763029832465,-166.7,0.00034652,2]
[393838578,1763029832474,-151.0,0.00035287,2]
[393838581,1763029832486,-151.0,0.00035287,2]
[393838582,1763029832495,-151.0,0.00035287,2]
[393838584,1763029832505,-151.0,0.00035287,2]
[393838586,1763029832514,-151.0,0.00035287,2]
[393838588,1763029832523,-151.0,0.00035287,2]
[393838590,1763029832532,-151.0,0.00035287,2]
[393838592,1763029832541,-151.0,0.00035287,2]
[393838594,1763029832550,-151.0,0.00035287,2]
[393838596,1763029832564,-151.0,0.00035287,2]
[393838598,1763029832573,-151.0,0.00035287,2]
[393838600,1763029832582,-151.0,0.00035287,2]
[393838602,1763029832592,-151.0,0.00035287,2]
[393838604,1763029832601,-151.0,0.00035287,2]
[393838606,1763029832610,-151.0,0.00035287,2]
[393838608,1763029832619,-177.39540095,0.00035287,2]
[393838610,1763029832628,-500.0,0.000353,5]
[393838612,1763029832638,-501.59027207,0.000353,5]
[393838614,1763029832647,-550.77985575,0.000353,5]
[393838616,1763029832657,-500.0,0.000353,5]
[393838618,1763029832666,-3426.0,0.00035309,2]
[393838620,1763029832675,-608.0,0.00035309,2]
[393838622,1763029832684,-1359.192,0.00035309,2]
[393838624,1763029832693,-215.0,0.00035686,120]
[393838626,1763029832702,-152.84202574,0.00035875,2]
[393838628,1763029832711,-417.0,0.00035875,120]
[393838630,1763029832720,-215.0,0.00035883,2]
[393838632,1763029832729,-417.0,0.00036084,7]
[393838634,1763029832740,-10356.04613304,0.00036116,2]
[393838637,1763029832757,-1246.01731037,0.00036116,2]
[393838639,1763029832769,-803.67,0.00036116,2]
[393838641,1763029832779,-6428.12788859,0.00036116,2]
[393838643,1763029832788,-215.0,0.00036195,2]
[393838645,1763029832797,-500.0,0.00036466,2]
[393838647,1763029832806,-225.284,0.00036466,45]
[393838649,1763029832815,-150.0,0.00036567,7]
[393838651,1763029832824,-213.0,0.00036784,2]
[393838653,1763029832833,-600.24,0.00036822,2]
[393838655,1763029832845,-213.0,0.00036837,2]
[393838657,1763029832854,-157.35,0.0003698,120]
[393838659,1763029832863,-1000.0,0.00037,120]
[393838661,1763029832873,-202.10593953,0.00037155,2]
[393838663,1763029832883,-3457.61,0.00037157,2]
[393838665,1763029832894,-1607.37,0.00037192,2]
[393838667,1763029832903,-966.71,0.00037231,30]
[393838669,1763029832911,-213.0,0.00037321,2]
[393838671,1763029832922,-213.0,0.00037324,2]
[393838673,1763029832931,-202.10593953,0.00037385,2]
[393838676,1763029832941,-3047.09615077,0.000374,2]
[393838677,1763029832950,-213.0,0.00037449,2]
[393838679,1763029832959,-4066.4819,0.00037557,2]
[393838681,1763029832969,-2500.0,0.00037557,2]
[393838683,1763029832978,-178.2850114,0.00037562,2]
[393838685,1763029832990,-4077.76479891,0.00037566,2]
[393838687,1763029832999,-1311.68548739,0.00037566,2]
[393838689,1763029833009,-178.52894428,0.00037567,15]
[393838691,1763029833019,-268.64065804,0.00037567,12]
[393838693,1763029833028,-1000.0,0.00037567,2]
[393838695,1763029833037,-5509.5755,0.00037567,2]
[393838697,1763029833047,-150.0,0.00037629,2]
[393838699,1763029833056,-828.2986687,0.00037633,2]
[393838701,1763029833066,-1055.67477384,0.00037636,2]
[393838703,1763029833076,-1283.05087897,0.00037639,2]
[393838705,1763029833085,-1510.42698411,0.00037642,2]
[393838707,1763029833094,-573.92,0.00037644,14]
[393838709,1763029833104,-1737.80308924,0.00037645,2]
[393838711,1763029833113,-1965.17919437,0.00037648,2]
[393838713,1763029833123,-2192.55529951,0.00037651,2]
[393838715,1763029833132,-2419.93140464,0.00037654,2]
[393838717,1763029833141,-500.0,0.00037656,15]
[393838719,1763029833150,-177.54630722,0.00037656,7]
[393838721,1763029833160,-500.0,0.00037656,15]
[393838723,1763029833169,-364.99745327,0.00037656,15]
[393838725,1763029833178,-500.0,0.00037656,15]
[393838727,1763029833188,-500.0,0.00037656,15]
[393838729,1763029833197,-500.0,0.00037656,15]
[393838731,1763029833206,-500.0,0.00037656,15]
[393838734,1763029833216,-500.0,0.00037656,15]
[393838735,1763029833225,-230.83853902,0.00037656,15]
[393838737,1763029833236,-500.0,0.00037656,15]
[393838739,1763029833246,-500.0,0.00037656,15]
[393838740,1763029833255,-500.0,0.00037656,15]
[393838741,1763029833264,-500.0,0.00037656,15]
[393838742,1763029833273,-500.0,0.00037656,15]
[393838743,1763029833282,-500.0,0.00037656,15]
[393838744,1763029833291,-500.0,0.00037656,15]
[393838745,1763029833301,-500.0,0.00037656,15]
[393838746,1763029833310,-500.0,0.00037656,15]
[393838747,1763029833319,-2647.30750977,0.00037657,2]
[393838748,1763029833328,-57578.88673056,0.00037657,4]
[393838749,1763029833340,-31963.84591195,0.00037657,4]
[393838750,1763029833352,-8248.795875,0.00037657,4]
[393838751,1763029833363,-38976.61323467,0.00037657,4]
[393838752,1763029833374,-10237.59376891,0.00037657,4]
[393838753,1763029833385,-1486.47249204,0.00037657,4]
[393838754,1763029833396,-4665.94394887,0.00037657,4]
[393838755,1763029833405,-3434.63456623,0.00037657,4]
[393838756,1763029833416,-11216.02844144,0.00037657,4]
[393838757,1763029833427,-463.43465661,0.00037657,4]
[393838773,1763029837615,-39510.08918132,0.00037657,4]
[393838774,1763029837624,-11781.3963048,0.00037663,4]
[393838775,1763029837633,-1874.79549382,0.00037663,4]
[393838776,1763029837645,-5642.34407679,0.00037663,4]
[393838777,1763029837656,-1134.22,0.00037663,4]
[393838778,1763029837667,-2273.47779849,0.00037663,4]
[393838779,1763029837676,-10471.36638995,0.00037667,2]
[393838780,1763029837687,-781.92608204,0.00037667,2]
[393838781,1763029837698,-10451.00408152,0.00037667,2]
[393838782,1763029837713,-424.538785,0.00037667,2]
[393838783,1763029837725,-735.85953622,0.00037667,2]
[393838810,1763029842852,-574.0,0.00035309,2]
[393838811,1763029842862,-418.49956207,0.00037667,2]
[393838832,1763029843583,-594.27179784,0.00037667,2]
[393838834,1763029843594,-443.54985613,0.00037667,2]
[393838836,1763029843605,-1930.5898133,0.00037667,2]
[393838910,1763029845770,-906.0,0.00037667,2]
[393838911,1763029845826,-21289.89591008,0.00037667,2]
[393839458,1763030665452,734.75,0.00018363,2]
[393839460,1763030898530,390.37,0.00013699,2]
[393839463,1763031012564,250.0,0.00017,2]
[393839470,1763031031834,-734.75,0.00019291,2]
[393839471,1763031031844,-250.0,0.00019523,2]
[393839472,1763031031853,-390.37,0.00020187,2]
[393839474,1763031031862,-105.379992,0.0002022,2]
[393839475,1763031031874,-629.370008,0.0002022,2]
[393839476,1763031031883,-500.0,0.000204,2]
[393839477,1763031031892,-150.0,0.00020607,2]
[393839478,1763031031901,-150.0,0.00020731,2]
[393839479,1763031031911,-734.75,0.00021148,2]
[393839480,1763031031921,-250.0,0.0002122,2]
[393839481,1763031031930,-250.0,0.0002122,2]
[393839482,1763031031939,-150.33289957,0.0002122,2]
[393839483,1763031031948,-734.75,0.00022077,2]
[393839484,1763031031957,-734.75,0.00023005,2]
[393839485,1763031031966,-1200.0,0.00023933,2]
[393839486,1763031031975,-734.75,0.00023934,2]
[393839487,1763031031984,-734.75,0.00024862,2]
[393839488,1763031031993,-300.0,0.00025789,2]
[393839489,1763031032002,-734.75,0.00025791,2]
[393839490,1763031032013,-1680.0,0.00026075,2]
[393839491,1763031032022,-390.37,0.00026676,2]
[393839492,1763031032031,-734.75,0.0002672,2]
[393839493,1763031032040,-734.75,0.00027648,2]
[393839494,1763031032051,-420.0,0.00027915,2]
[393839495,1763031032060,-2351.0,0.00028408,2]
[393839496,1763031032069,-734.75,0.00028577,2]
[393839497,1763031032078,-734.75,0.00029505,2]
[393839498,1763031032088,-587.0,0.00030217,2]
[393839499,1763031032097,-734.75,0.00030434,2]
[393839500,1763031032106,-550.0,0.0003049,2]
[393839501,1763031032115,-734.75,0.00031362,2]
[393839502,1763031032125,-734.75,0.00032291,2]
[393839503,1763031032137,-673.0,0.00032709,3]
[393839504,1763031032146,-390.37,0.00033165,2]
[393839505,1763031032155,-734.75,0.00033219,2]
[393839506,1763031032163,-1000.0,0.000333,2]
[393839507,1763031032173,-9999.99,0.000333,2]
[393839508,1763031032181,-150.0,0.00033516,2]
[393839509,1763031032190,-734.75,0.00034148,2]
[393839510,1763031032200,-152.0,0.0003432,3]
[393839511,1763031032209,-166.66,0.00034695,30]
[393839512,1763031032219,-734.75,0.00035076,2]
[393839513,1763031032228,-166.66,0.00035426,30]
[393839514,1763031032237,-734.75,0.00036005,2]
[393839515,1763031032247,-166.66,0.00036156,30]
[393839516,1763031032256,-1000.0,0.00036418,7]
[393839517,1763031032269,-2453.83,0.00036553,2]
[393839518,1763031032278,-734.22,0.00036553,2]
[393839519,1763031032287,-4651.55,0.00036598,2]
[393839520,1763031032296,-1000.0,0.00036635,7]
[393839521,1763031032305,-152.0,0.00036742,4]
[393839522,1763031032315,-166.66,0.00036887,30]
[393839523,1763031032324,-1000.0,0.00036909,7]
[393839524,1763031032333,-1000.0,0.00036913,7]
[393839525,1763031032347,-150.0,0.00036926,7]
[393839526,1763031032356,-352.72,0.00036978,2]
[393839527,1763031032365,-150.0,0.00036978,2]
[393839528,1763031032375,-600.0,0.00037,2]
[393839529,1763031032385,-180.227,0.00037,47]
[393839530,1763031032394,-1000.0,0.00037021,7]
[393839531,1763031032404,-221.0,0.00037118,2]
[393839532,1763031032414,-150.0,0.00037131,7]
[393839533,1763031032423,-204.77165911,0.0003714,7]
[393839534,1763031032435,-795.22834089,0.0003714,7]
[393839535,1763031032444,-1000.0,0.00037195,7]
[393839536,1763031032453,-383.54866085,0.000372,2]
[393839537,1763031032462,-301.05,0.00037244,2]
[393839538,1763031032471,-215.26652976,0.00037244,2]
[393839539,1763031032482,-637.07744154,0.00037244,2]
[393839540,1763031032493,-388.4460287,0.00037244,2]
[393839541,1763031032502,-133.60188119,0.00037244,2]
[393839542,1763031032515,-18.14811881,0.00037244,2]
[393839543,1763031032524,-301.16,0.00037244,2]
[393839544,1763031032534,-302.36,0.00037244,2]
[393839545,1763031032543,-242.41637573,0.00037244,2]
[393839546,1763031032554,-318.10448703,0.00037244,2]
[393839547,1763031032565,-284.10913724,0.00037244,2]
[393839548,1763031032574,-359.28,0.00037244,2]
[393839549,1763031032583,-1122.67,0.00037244,2]
[393839550,1763031032593,-343.45,0.00037244,2]
[393839551,1763031032602,-1207.25,0.00037244,2]
[393839552,1763031032610,-150.0,0.00037244,2]
[393839553,1763031032619,-169.14,0.00037244,2]
[393839554,1763031032628,-1099.48,0.00037244,2]
[393839555,1763031032637,-150.0,0.00037244,2]
[393839556,1763031032646,-150.0,0.00037244,2]
[393839557,1763031032655,-176.94,0.00037244,2]
[393839558,1763031032664,-549.74,0.00037244,2]
[393839559,1763031032673,-150.0,0.00037244,2]
[393839560,1763031032682,-1207.25,0.00037244,2]
[393839561,1763031032690,-300.0,0.00037244,2]
[393839562,1763031032700,-1207.63,0.00037244,2]
[393839563,1763031032709,-416.38,0.00037244,2]
[393839564,1763031032718,-1207.63,0.00037244,2]
[393839565,1763031032727,-1207.63,0.00037244,2]
[393839566,1763031032736,-1203.89,0.00037244,2]
[393839567,1763031032745,-416.38,0.00037244,2]
[393839568,1763031032756,-2144.0,0.00037275,2]
[393839569,1763031032764,-906.0,0.00037275,2]
[393839570,1763031032773,-1190.0,0.00037275,2]
[393839571,1763031032782,-494.7822,0.0003729,2]
[393839572,1763031032791,-150.0,0.00037301,7]
[393839573,1763031032800,-300.0,0.00037318,2]
[393839574,1763031032809,-1000.0,0.00037322,7]
[393839575,1763031032818,-150.0,0.00037362,7]
[393839576,1763031032827,-1000.0,0.00037396,7]
[393839577,1763031032837,-150.0,0.00037397,7]
[393839578,1763031032846,-4623.0783277,0.00037438,2]
[393839579,1763031032855,-150.0,0.0003744,7]
[393839580,1763031032864,-1892.0291721,0.00037448,2]
[393839581,1763031032874,-186.08925052,0.00037448,2]
[393839582,1763031032885,-180.58238422,0.00037448,15]
[393839583,1763031032894,-1000.0,0.0003745,7]
[393839584,1763031032903,-215.80677572,0.00037467,7]